bitfinex-derivatives/quotes_ETHF0:USTF0_20260207
["timestamp","ask_amount","ask_price","bid_price","bid_amount"]
[1770446417332,12.87426043,2086.0,2085.2,11.6142896]
[1770446417532,11.40946022,2086.0,2085.2,11.6142896]
[1770446418329,11.41525891,2086.0,2085.2,11.6142896]
[1770446418531,13.39211217,2086.0,2085.2,11.6142896]
[1770446419138,13.39211217,2086.0,2085.2,0.00355357]
[1770446419338,13.39211217,2086.0,2085.2,11.6142896]
[1770446419837,11.41525891,2086.0,2085.2,11.6142896]
[1770446420137,13.47558963,2086.0,2085.2,0.00355357]
[1770446423432,13.47558963,2086.0,2085.2,11.6142896]
[1770446423637,11.41525891,2086.0,2085.2,11.6142896]
[1770446423937,0.00579869,2086.0,2085.2,11.6142896]
[1770446424944,11.41525891,2086.0,2085.2,11.6142896]
[1770446432752,0.00579869,2086.0,2085.2,11.6142896]
[1770446433649,11.41525891,2086.0,2085.2,11.6142896]
[1770446433948,0.00579869,2086.0,2085.2,11.6142896]
[1770446434448,11.41525891,2086.0,2085.2,11.6142896]
[1770446434647,0.00579869,2086.0,2085.2,11.6142896]
[1770446435752,11.78816927,2086.0,2085.2,11.6142896]
[1770446440060,0.00579869,2086.0,2085.2,11.6142896]
[1770446440854,11.78816927,2086.0,2085.2,11.6142896]
[1770446450767,0.00579869,2086.0,2085.2,11.6142896]
[1770446450969,11.78816927,2086.0,2085.2,11.6142896]
[1770446453169,0.00579869,2086.0,2085.2,11.6142896]
[1770446453668,0.00579869,2086.0,2085.2,14.46314272]
[1770446454664,11.78816927,2086.0,2085.2,14.46314272]
[1770446456969,11.78816927,2086.0,2085.2,11.6142896]
[1770446461269,0.00579869,2086.0,2085.2,11.6142896]
[1770446461575,11.78816927,2086.0,2085.2,11.6142896]
[1770446463174,13.25263097,2086.0,2085.2,11.6142896]
[1770446469584,11.78816927,2086.0,2085.2,11.6142896]
[1770446470983,0.00579869,2086.0,2085.2,11.6142896]
[1770446474489,10.75173069,2086.0,2085.2,11.6142896]
[1770446474688,0.00579869,2086.0,2085.2,11.6142896]
[1770446475692,10.75173069,2086.0,2085.2,11.6142896]
[1770446476383,10.75173069,2086.0,2085.2,0.00355357]
[1770446476587,10.745932,2085.8,2085.2,0.00355357]
[1770446479796,10.745932,2085.8,2085.2,11.39007197]
[1770446483900,10.745932,2085.8,2085.2,0.00355357]
[1770446485596,10.745932,2085.8,2085.2,11.39007197]
[1770446490603,10.745932,2085.8,2085.2,0.00355357]
[1770446490807,10.82941266,2085.8,2084.4,1.4644617]
[1770446491004,12.29387436,2085.8,2084.5,11.3865184]
[1770446491301,10.745932,2085.7,2084.5,11.3865184]
[1770446491807,10.745932,2085.7,2084.5,11.39086573]
[1770446498912,0.08348066,2085.8,2084.8,11.24800495]
[1770446499115,11.75445097,2085.9,2084.8,11.24800495]
[1770446501017,0.00579869,2086.0,2084.8,11.24800495]
[1770446501018,11.75445097,2085.7,2084.8,11.24800495]
[1770446506929,8.59641498,2086.0,2084.8,11.24800495]
[1770446506930,11.75445097,2085.5,2084.8,11.24800495]
[1770446508132,11.75445097,2085.4,2084.8,11.24800495]
[1770446508729,8.59061629,2085.5,2084.5,0.00434733]
[1770446508730,11.75445097,2085.2,2084.5,0.00434733]
[1770446508931,11.75445097,2085.2,2084.4,10.30835228]
[1770446509336,11.75445097,2085.1,2084.4,10.30835228]
[1770446510031,11.75445097,2085.1,2084.4,10.31247872]
[1770446510732,11.75445097,2085.1,2084.4,0.00412644]
[1770446511227,11.75445097,2084.9,2084.4,0.00412644]
[1770446513428,11.75445097,2084.7,2084.4,0.00412644]
[1770446513629,11.75445097,2084.7,2084.2,11.24800495]
[1770446514528,11.75445097,2084.7,2084.2,11.25352885]
[1770446515131,11.75445097,2084.7,2084.2,0.0055239]
[1770446515632,11.75445097,2084.7,2084.2,11.25352885]
[1770446515832,11.75445097,2084.5,2083.6,12.71427283]
[1770446516628,11.75445097,2084.5,2083.2,5.57743724]
[1770446516629,11.75445097,2085.0,2084.3,11.24800495]
[1770446516829,11.75983362,2085.0,2084.3,11.25160811]
[1770446518439,0.00538265,2085.0,2084.3,11.25160811]
[1770446520437,11.75983362,2085.0,2084.3,11.25160811]
[1770446520835,0.00538265,2085.0,2084.5,11.24800495]
[1770446523140,11.75983362,2085.0,2084.5,11.24800495]
[1770446523341,13.22071885,2084.9,2084.5,11.24800495]
[1770446523539,11.75445097,2084.9,2084.5,11.24800495]
[1770446523933,13.22071885,2084.9,2084.3,11.25160811]
[1770446525537,11.75445097,2084.6,2084.3,11.25160811]
[1770446525742,11.75445097,2084.6,2084.3,6.72547441]
[1770446525943,11.15755763,2084.7,2084.3,6.72547441]
[1770446526639,11.15755763,2084.7,2084.3,6.73131987]
[1770446527441,11.15755763,2084.7,2084.3,0.00584546]
[1770446528139,11.15755763,2084.5,2084.1,10.80950582]
[1770446529346,11.48297501,2084.6,2084.1,10.8139852]
[1770446533047,11.48297501,2084.8,2084.1,10.8139852]
[1770446533344,11.48835766,2085.0,2084.3,10.74374954]
[1770446533550,11.48835766,2085.0,2083.7,10.74374954]
[1770446533551,11.48297501,2084.4,2083.7,10.74374954]
[1770446533751,12.94924289,2084.2,2083.7,10.74374954]
[1770446534453,12.94924289,2084.2,2083.3,10.74374954]
[1770446534650,11.48297501,2084.2,2083.3,10.74899465]
[1770446536451,12.94924289,2084.2,2083.3,10.74899465]
[1770446536951,11.48297501,2083.9,2083.0,2.85486252]
[1770446537154,11.48297501,2083.4,2082.9,10.74374954]
[1770446538055,11.48297501,2083.2,2082.9,0.00340374]
[1770446540053,12.94924289,2083.3,2082.9,10.74715328]
[1770446540251,1.46626788,2083.9,2082.9,12.21342116]
[1770446540556,11.48297501,2083.7,2082.9,10.74715328]
[1770446541358,12.95375505,2083.7,2082.9,10.74715328]
[1770446542453,11.48297501,2083.4,2082.9,10.74715328]
[1770446543554,11.48297501,2083.6,2082.9,10.74715328]
[1770446545755,0.00451216,2083.7,2082.9,10.74715328]
[1770446546155,11.48748717,2083.7,2082.9,10.74715328]
[1770446547255,0.00451216,2083.7,2082.9,10.74715328]
[1770446547456,11.48297501,2084.0,2082.9,10.74715328]
[1770446548556,11.48705058,2084.0,2082.9,10.74715328]
[1770446550354,0.00407557,2084.0,2082.9,10.74715328]
[1770446550558,11.48297501,2084.4,2082.9,10.74715328]
[1770446551565,11.48671049,2084.4,2082.9,10.74715328]
[1770446552160,11.48671049,2084.4,2083.0,10.74374954]
[1770446556169,11.48671049,2084.4,2083.1,10.96230514]
[1770446563364,11.06979021,2084.0,2083.1,12.42935715]
[1770446566071,12.53684222,2084.1,2083.1,12.42935715]
[1770446568268,12.53684222,2084.1,2083.2,10.96230514]
[1770446571975,11.06979021,2083.8,2083.2,10.96230514]
[1770446573270,10.28925937,2083.8,2083.2,10.96230514]
[1770446573676,11.06979021,2084.1,2083.2,10.96230514]
[1770446576074,11.06979021,2084.1,2083.3,10.96230514]
[1770446579076,11.06979021,2084.3,2083.3,10.96230514]
[1770446579380,11.06979021,2084.3,2083.4,10.96230514]
[1770446582076,11.06979021,2084.6,2083.7,10.96230514]
[1770446582976,11.06979021,2084.6,2083.9,10.96230514]
[1770446583178,11.07501067,2084.6,2083.9,10.96230514]
[1770446585178,11.06979021,2084.4,2083.6,10.96230514]
[1770446587276,10.66247293,2084.6,2083.6,10.96230514]
[1770446587481,10.66247293,2084.6,2083.7,11.79948542]
[1770446587683,10.66247293,2084.6,2083.8,11.79948542]
[1770446588188,1e-08,2084.6,2083.9,5.13934073]
[1770446588486,1e-08,2084.6,2084.0,11.79948542]
[1770446588881,10.65725247,2084.8,2084.0,11.79948542]
[1770446589886,0.00347681,2084.8,2084.0,11.79948542]
[1770446590180,10.74622689,2085.2,2084.2,10.71730198]
[1770446590984,10.74987298,2085.2,2084.2,10.71730198]
[1770446598995,10.74987298,2085.2,2084.0,2.67110283]
[1770446599197,12.72498398,2084.3,2082.9,0.00340374]
[1770446599395,10.98629689,2084.1,2082.4,4.28872803]
[1770446599596,10.74622689,2083.7,2082.5,0.50799525]
[1770446599797,10.74622689,2083.7,2082.1,10.71730198]
[1770446600103,10.74622689,2083.7,2081.1,12.21958047]
[1770446600104,10.74622689,2083.7,2082.2,11.22529723]
[1770446600298,10.74622689,2083.7,2082.2,10.72217728]
[1770446600299,10.75026245,2083.7,2082.2,10.72217728]
[1770446600492,10.75026245,2083.7,2082.3,0.50799525]
[1770446600698,10.75026245,2083.7,2082.3,11.22529723]
[1770446601193,10.75026245,2083.7,2082.2,0.0048753]
[1770446601396,10.74622689,2083.5,2082.2,0.0048753]
[1770446602703,10.74622689,2083.5,2081.1,10.71730198]
[1770446602704,10.74622689,2082.4,2081.1,10.71730198]
[1770446603501,10.74622689,2082.4,2081.1,10.72285403]
[1770446606103,10.74622689,2083.3,2081.1,10.72285403]
[1770446613610,10.74622689,2083.3,2082.7,10.71730198]
[1770446613809,10.74622689,2083.3,2082.7,10.72166326]
[1770446614411,0.00403556,2083.7,2081.6,10.71730198]
[1770446614412,1.97875709,2083.0,2081.6,10.71730198]
[1770446614612,10.74622689,2082.9,2081.6,10.71730198]
[1770446615410,10.74622689,2082.9,2081.6,10.72287862]
[1770446615908,10.74622689,2082.9,2081.6,0.00557664]
[1770446616215,11.70013833,2082.6,2081.0,10.96831329]
[1770446616614,11.70013833,2082.6,2080.8,10.96831329]
[1770446617415,11.70013833,2082.6,2080.8,10.97367078]
[1770446618713,11.70013833,2082.6,2080.8,0.00535749]
[1770446619010,11.70013833,2082.1,2080.8,0.00535749]
[1770446619316,11.70013833,2081.8,2080.4,10.96831329]
[1770446620014,11.70013833,2081.8,2079.3,10.96831329]
[1770446620220,11.70013833,2081.8,2079.8,10.96831329]
[1770446620518,11.70013833,2081.8,2079.8,10.97245698]
[1770446621219,11.70013833,2080.9,2079.2,10.96831329]
[1770446621411,11.70013833,2080.4,2078.6,10.96831329]
[1770446621607,11.70013833,2079.9,2077.9,0.29911373]
[1770446621817,11.70013833,2079.9,2078.0,10.96831329]
[1770446622407,11.70584196,2079.9,2078.0,10.97229001]
[1770446623808,13.67889542,2079.6,2078.0,10.97229001]
[1770446626113,11.70013833,2079.6,2078.0,10.97229001]
[1770446628118,11.70013833,2079.6,2078.2,10.96831329]
[1770446628520,11.70013833,2079.8,2079.4,15.94155256]
[1770446629219,11.70013833,2079.8,2078.8,10.96831329]
[1770446629520,11.70584196,2079.9,2078.8,10.96831329]
[1770446632816,0.00570363,2079.9,2078.8,10.96831329]
[1770446634316,1.98811955,2079.4,2078.2,10.96831329]
[1770446634517,11.70013833,2079.0,2078.2,10.96831329]
[1770446636120,11.70013833,2079.0,2078.0,10.97229001]
[1770446636927,11.70013833,2079.0,2078.0,0.00397672]
[1770446639131,11.70013833,2079.0,2077.5,10.96831329]
[1770446639332,11.70013833,2078.7,2077.5,10.96831329]
[1770446640133,11.70013833,2078.7,2077.5,10.97215491]
[1770446641725,11.70013833,2079.2,2077.5,10.97215491]
[1770446641925,11.70013833,2078.9,2077.5,0.00384162]
[1770446642232,11.70013833,2078.5,2077.6,10.96831329]
[1770446643436,11.70013833,2078.7,2077.6,10.96831329]
[1770446643733,11.70013833,2078.9,2077.6,10.96831329]
[1770446648736,5.62982041,2079.3,2077.5,0.00384162]
[1770446648737,10.68776972,2079.3,2078.1,10.83738734]
[1770446652441,10.84659908,2079.5,2078.4,11.4542314]
[1770446655445,10.84659908,2079.8,2078.4,11.4542314]
[1770446658750,0.00570363,2079.9,2078.7,11.4542314]
[1770446659245,10.85230271,2079.9,2078.7,11.4542314]
[1770446659546,10.85230271,2079.9,2078.4,2.86473574]
[1770446659547,10.84659908,2079.5,2078.4,2.86473574]
[1770446659845,10.84659908,2079.1,2077.9,11.4542314]
[1770446660845,10.84659908,2079.1,2077.6,11.4542314]
[1770446662650,10.84659908,2078.8,2077.6,11.4542314]
[1770446662842,12.83471863,2078.8,2077.5,0.00384162]
[1770446663351,12.83471863,2078.8,2076.4,5.65561168]
[1770446663352,10.84659908,2078.0,2076.8,11.4542314]
[1770446664355,10.8509957,2078.0,2076.8,11.4542314]
[1770446664746,10.8509957,2078.0,2075.6,5.65561168]
[1770446664747,1.98811955,2077.3,2075.6,5.65561168]
[1770446664949,1.98811955,2077.3,2076.1,11.4542314]
[1770446664950,10.84659908,2077.3,2076.1,11.4542314]
[1770446666755,10.84659908,2077.6,2076.1,13.44235095]
[1770446666953,10.84659908,2077.6,2076.1,11.4542314]
[1770446667541,0.24517662,2078.0,2076.1,11.4542314]
[1770446667542,10.84659908,2077.4,2076.1,11.4542314]
[1770446668949,0.24517662,2078.0,2076.1,13.44235095]
[1770446668950,10.84659908,2077.6,2076.1,13.44235095]
[1770446670456,10.84659908,2077.9,2076.1,13.44235095]
[1770446670754,10.84659908,2077.9,2076.5,11.4542314]
[1770446670953,0.00439662,2078.0,2076.5,11.4542314]
[1770446671154,10.8509957,2078.0,2076.5,11.4542314]
[1770446671952,0.00439662,2078.0,2076.8,11.4542314]
[1770446673359,10.8509957,2078.0,2076.8,11.4542314]
[1770446673557,0.00439662,2078.0,2077.1,11.4542314]
[1770446673855,10.84659908,2078.5,2077.1,11.4542314]
[1770446674754,0.2406,2079.3,2077.4,11.4542314]
[1770446674755,10.84659908,2078.7,2077.4,11.4542314]
[1770446674958,10.85195592,2078.7,2077.4,11.4542314]
[1770446676358,0.00535684,2078.7,2077.4,11.4542314]
[1770446676558,0.00535684,2078.7,2077.7,11.02163065]
[1770446676759,0.00535684,2078.7,2077.7,11.02688766]
[1770446676955,11.09828725,2079.1,2077.7,11.02688766]
[1770446677256,11.09828725,2079.1,2078.0,11.02163065]
[1770446677657,1.98811955,2079.9,2078.0,11.02163065]
[1770446677958,11.09828725,2079.3,2078.0,11.02163065]
[1770446679361,11.09828725,2079.8,2078.0,11.02163065]
[1770446680658,11.09828725,2079.5,2078.0,11.02163065]
[1770446681059,11.09828725,2079.2,2078.0,11.02163065]
[1770446688165,11.09828725,2079.6,2078.0,11.02163065]
[1770446691469,11.09828725,2079.4,2078.0,11.02163065]
[1770446695773,11.09828725,2079.3,2077.8,11.02163065]
[1770446695973,11.09828725,2079.2,2077.8,11.02163065]
[1770446696275,16.78047562,2079.0,2077.7,0.00525701]
[1770446696463,11.09828725,2078.9,2077.7,0.00525701]
[1770446697269,11.09828725,2078.8,2077.7,11.02688766]
[1770446698177,11.09828725,2078.7,2077.7,11.02688766]
[1770446700175,11.09828725,2078.6,2077.7,11.02688766]
[1770446701376,11.09828725,2078.4,2077.7,0.00086039]
[1770446702178,11.09828725,2078.7,2077.7,11.02249104]
[1770446702476,0.00351005,2078.7,2077.8,11.02163065]
[1770446702672,11.09828725,2079.5,2077.9,11.02163065]
[1770446702877,11.09828725,2079.5,2078.0,11.02163065]
[1770446703667,11.09828725,2079.2,2078.0,11.02163065]
[1770446709680,11.09828725,2079.2,2078.1,9.89092665]
[1770446713180,9.90498534,2079.1,2078.1,9.89092665]
[1770446715283,9.90498534,2079.1,2077.8,9.89092665]
[1770446717489,9.90498534,2078.9,2077.8,9.89092665]
[1770446721187,9.90498534,2078.9,2077.7,0.00086039]
[1770446721384,7.13260856,2078.1,2076.8,2.86946177]
[1770446721585,9.90498534,2077.9,2076.5,9.89092665]
[1770446721789,9.90498534,2077.8,2076.5,9.89092665]
[1770446721989,9.90498534,2077.7,2076.5,9.89092665]
[1770446722380,9.91004634,2077.7,2076.5,9.89546541]
[1770446725190,9.91004634,2077.7,2075.8,4.30403062]
[1770446725191,9.90498534,2077.2,2075.8,12.76038842]
[1770446725484,9.90498534,2077.2,2075.4,7.17365443]
[1770446725485,9.90498534,2077.1,2075.9,9.89092665]
[1770446726193,9.90498534,2077.1,2075.2,9.89092665]
[1770446726591,9.90498534,2077.1,2075.2,9.89539412]
[1770446727393,9.90498534,2077.0,2075.2,9.89539412]
[1770446728090,7.13260856,2077.2,2075.0,9.89092665]
[1770446728091,1.99017866,2076.0,2075.0,9.89092665]
[1770446728394,9.90498534,2075.9,2075.0,9.89092665]
[1770446729391,9.90901452,2075.9,2075.0,9.89582353]
[1770446730189,9.90901452,2075.9,2075.0,9.89231348]
[1770446730582,9.90901452,2075.9,2075.0,0.00138683]
[1770446730786,9.90901452,2075.9,2075.0,9.89231348]
[1770446731392,0.00402918,2075.9,2075.0,9.89231348]
[1770446732191,9.90498534,2076.4,2075.0,9.89231348]
[1770446732693,9.90498534,2076.1,2075.1,9.89092665]
[1770446732897,9.90498534,2076.1,2075.0,9.89231348]
[1770446733195,9.90870284,2076.1,2075.0,9.89231348]
[1770446736296,9.8416931,2075.8,2074.2,9.65467723]
[1770446737504,9.8416931,2075.8,2074.2,9.65870641]
[1770446739393,9.8416931,2075.8,2074.2,0.00402918]
[1770446739598,0.0037175,2076.1,2074.2,0.00402918]
[1770446739599,9.8416931,2075.3,2074.2,9.65870641]
[1770446740997,9.8416931,2075.9,2074.2,9.65870641]
[1770446748504,10.0826931,2075.9,2074.2,9.65870641]
[1770446748904,9.8416931,2075.8,2074.2,9.65870641]
[1770446749410,9.8416931,2075.7,2074.2,9.65870641]
[1770446749803,9.8416931,2075.7,2073.0,5.71837183]
[1770446749804,9.8416931,2075.1,2073.8,9.65467723]
[1770446753610,9.8416931,2074.8,2072.9,2.85242535]
[1770446753815,9.8416931,2073.9,2073.0,9.65467723]
[1770446754018,9.84592083,2073.9,2073.0,9.65467723]
[1770446755314,9.84592083,2073.9,2072.2,9.65467723]
[1770446757618,9.8416931,2073.0,2071.9,9.65467723]
[1770446758318,9.8416931,2073.5,2071.9,9.65467723]
[1770446760813,9.8416931,2073.7,2071.9,11.65265709]
[1770446761116,9.8416931,2073.7,2072.2,1.99797986]
[1770446761316,9.84592083,2073.9,2072.6,1.99797986]
[1770446761516,0.00422773,2073.9,2072.7,9.65467723]
[1770446761718,0.00422773,2073.9,2073.0,9.65467723]
[1770446761915,9.8416931,2074.9,2073.6,9.65467723]
[1770446762115,9.8416931,2075.2,2073.6,9.65467723]
[1770446762323,1.99797986,2074.3,2073.2,9.65467723]
[1770446762522,11.83967296,2074.3,2073.2,9.65467723]
[1770446762710,9.8416931,2074.3,2073.2,9.65467723]
[1770446762915,9.84577484,2074.3,2073.2,9.65890496]
[1770446763124,11.8437547,2074.3,2073.2,9.65890496]
[1770446763313,11.8437547,2074.3,2073.2,0.00422773]
[1770446764322,11.8437547,2074.3,2073.2,9.65890496]
[1770446764622,9.84577484,2074.3,2073.2,9.65890496]
[1770446765717,14.88206034,2075.1,2073.2,9.65890496]
[1770446765914,9.2436725,2075.1,2073.5,9.18397934]
[1770446766116,9.2436725,2075.5,2073.8,9.18397934]
[1770446766322,9.2436725,2075.3,2073.8,9.18397934]
[1770446766729,9.24940981,2075.3,2073.8,9.18397934]
[1770446767432,0.00573731,2075.3,2073.8,9.18397934]
[1770446768023,0.00573731,2075.3,2074.1,9.18397934]
[1770446768419,0.00573731,2075.3,2074.4,9.18397934]
[1770446769132,9.21296265,2076.0,2074.4,9.18397934]
[1770446769625,9.21296265,2076.4,2074.7,8.93918836]
[1770446770023,9.21296265,2076.4,2074.9,8.93918836]
[1770446770227,9.21296265,2076.4,2074.8,1.99797986]
[1770446770228,0.00505841,2076.4,2075.2,8.93918836]
[1770446770622,0.00505841,2076.4,2075.4,1.99797986]
[1770446770821,0.00505841,2076.4,2075.3,8.93918836]
[1770446770822,11.21094251,2076.1,2075.3,8.93918836]
[1770446771023,11.21094251,2076.1,2075.2,0.3141773]
[1770446771222,9.21296265,2075.7,2074.7,0.00473857]
[1770446771426,9.21296265,2075.7,2074.7,8.94392693]
[1770446771626,5.64344625,2076.4,2074.7,8.94392693]
[1770446771825,9.21296265,2076.0,2074.7,8.94392693]
[1770446773125,9.21802106,2076.4,2074.7,10.94190679]
[1770446773431,9.21802106,2076.4,2074.7,8.94392693]
[1770446776429,9.21296265,2075.9,2074.7,8.94392693]
[1770446781433,9.21296265,2075.4,2074.7,0.00473857]
[1770446782637,9.21296265,2075.4,2074.7,8.94392693]
[1770446783838,9.21296265,2075.7,2074.7,8.94392693]
[1770446784539,9.21296265,2075.7,2074.7,0.00473857]
[1770446784935,9.21296265,2075.7,2074.7,8.94392693]
[1770446787141,11.21094251,2075.7,2074.7,0.00473857]
[1770446788343,9.21296265,2075.7,2074.7,0.00473857]
[1770446789044,9.21296265,2075.7,2074.7,8.94392693]
[1770446790042,9.21296265,2076.0,2074.7,8.94392693]
[1770446790233,9.21296265,2075.7,2074.2,8.93918836]
[1770446790438,9.21296265,2075.5,2074.2,8.93918836]
[1770446790938,9.21296265,2075.2,2074.2,8.93918836]
[1770446791340,9.21296265,2075.2,2074.2,8.94377684]
[1770446794749,5.67496953,2075.3,2074.2,8.94377684]
[1770446794949,9.21296265,2075.6,2074.2,8.94377684]
[1770446795339,9.21296265,2075.6,2074.3,8.93918836]
[1770446795546,9.21296265,2076.0,2074.5,8.93918836]
[1770446796443,9.22473403,2076.3,2074.8,9.31533125]
[1770446796651,0.00505841,2076.4,2075.0,9.31533125]
[1770446796945,9.22979244,2076.4,2075.0,9.31533125]
[1770446797644,0.00505841,2076.4,2075.2,9.31533125]
[1770446797843,0.00505841,2076.4,2075.4,9.31533125]
[1770446798957,10.25011183,2077.2,2075.6,9.31533125]
[1770446798958,9.22473403,2077.1,2075.6,9.31533125]
[1770446799152,9.22473403,2077.1,2075.7,11.31331111]
[1770446799450,10.25011183,2077.2,2075.7,9.31533125]
[1770446799754,10.25011183,2077.2,2075.6,2.85242535]
[1770446799755,11.22271389,2077.8,2076.0,9.31533125]
[1770446799953,11.22812321,2077.8,2076.0,9.32095184]
[1770446801051,9.23014335,2077.8,2076.3,9.31533125]
[1770446802248,9.22473403,2077.6,2076.3,9.31533125]
[1770446802452,0.00540932,2077.8,2076.6,9.31533125]
[1770446803653,0.00540932,2077.8,2076.6,11.31331111]
[1770446806559,9.23014335,2077.8,2076.6,9.31533125]
[1770446806861,9.22473403,2077.6,2076.6,9.31533125]
[1770446808264,9.22473403,2077.4,2076.4,9.31533125]
[1770446808860,9.22473403,2077.4,2076.1,9.31533125]
[1770446809359,9.22473403,2077.1,2076.1,9.31533125]
[1770446809559,9.22473403,2077.1,2076.0,0.00562059]
[1770446810667,9.22473403,2076.8,2076.0,0.00562059]
[1770446810968,9.22473403,2076.8,2075.5,9.31533125]
[1770446811567,9.22473403,2077.0,2075.5,11.31331111]
[1770446811770,9.22473403,2077.0,2075.5,9.32074193]
[1770446821568,9.22473403,2077.4,2075.7,9.31533125]
[1770446822362,9.22473403,2077.2,2075.7,9.31533125]
[1770446822768,9.46560403,2077.0,2075.7,9.31533125]
[1770446822967,9.22473403,2076.8,2075.7,9.31533125]
[1770446823173,9.22473403,2076.8,2075.5,9.32074193]
[1770446823674,9.46562403,2076.8,2075.5,0.00541068]
[1770446824372,9.22473403,2076.7,2075.5,0.00541068]
[1770446824971,9.22473403,2076.7,2075.5,9.32074193]
[1770446825171,9.22473403,2076.6,2075.5,9.32074193]
[1770446829568,1.99462155,2077.1,2075.5,9.32074193]
[1770446829569,8.49554806,2077.2,2075.5,9.32074193]
[1770446830176,8.49554806,2077.1,2075.5,9.32074193]
[1770446831273,8.73641806,2077.0,2075.5,9.32074193]
[1770446831776,8.49554806,2076.9,2075.5,9.32074193]
[1770446832770,15.61194071,2076.8,2075.5,9.32074193]
[1770446832972,10.49016961,2076.7,2075.5,0.00541068]
[1770446833166,8.49554806,2076.7,2075.5,0.00541068]
[1770446833571,8.49554806,2076.7,2075.5,9.02617928]
[1770446834177,8.49554806,2076.6,2075.5,9.02617928]
[1770446836982,15.61194071,2076.6,2075.5,0.00541068]
[1770446837283,8.49554806,2076.5,2075.5,9.02617928]
[1770446838180,8.49554806,2076.4,2075.5,9.02617928]
[1770446839281,8.49554806,2076.2,2075.1,9.0207686]
[1770446839682,8.49554806,2075.8,2074.8,9.0207686]
[1770446839879,8.49554806,2075.6,2074.8,9.0207686]
[1770446840280,8.49554806,2075.5,2074.8,0.00333535]
[1770446840480,8.49554806,2075.4,2074.5,9.0207686]
[1770446840981,8.49554806,2075.3,2074.5,9.0207686]
[1770446841686,8.49554806,2075.3,2073.7,9.0207686]
[1770446841885,8.49554806,2075.2,2073.7,9.0207686]
[1770446844387,8.49554806,2075.4,2073.7,9.0207686]
[1770446844782,8.49554806,2075.4,2073.8,9.0207686]
[1770446845380,8.50068495,2075.6,2073.8,9.0207686]
[1770446845690,12.39244924,2076.6,2074.6,9.0207686]
[1770446845691,8.49554806,2076.6,2074.6,9.0207686]
[1770446845889,8.49554806,2076.6,2074.9,9.0207686]
[1770446846690,8.4998058,2076.6,2074.9,9.02419678]
[1770446847795,10.49016961,2076.4,2074.9,9.02419678]
[1770446848288,8.49554806,2076.2,2074.9,9.02419678]
[1770446850293,8.49554806,2076.1,2074.9,9.02419678]
[1770446851588,8.49554806,2076.1,2074.9,0.00342818]
[1770446851889,8.49554806,2076.1,2073.9,4.29885229]
[1770446851890,8.49554806,2075.3,2073.9,9.0207686]
[1770446852794,8.49554806,2075.2,2073.9,9.02247731]
[1770446853294,8.49554806,2075.0,2073.9,0.00170871]
[1770446853482,8.49943143,2075.0,2073.9,0.00170871]
[1770446853890,8.49943143,2075.0,2073.9,9.02247731]
[1770446854087,8.74053143,2075.0,2073.9,0.00170871]
[1770446854798,8.49943143,2075.0,2073.9,9.02247731]
[1770446855294,8.49554806,2074.1,2072.9,9.0207686]
[1770446857790,1.99462155,2074.6,2072.9,9.0207686]
[1770446857791,8.68342599,2074.6,2072.9,9.0207686]
[1770446857992,8.68342599,2074.8,2072.9,9.0207686]
[1770446858298,8.68342599,2074.5,2072.9,9.0207686]
[1770446859591,8.68342599,2074.7,2072.9,9.0207686]
[1770446859784,8.68342599,2074.9,2072.9,9.0207686]
[1770446860994,8.68730936,2075.0,2073.3,8.85700466]
[1770446861394,0.00388337,2075.0,2073.3,8.85700466]
[1770446862697,8.68730936,2075.0,2073.3,8.85700466]
[1770446864092,0.00388337,2075.0,2073.3,8.85700466]
[1770446865100,8.68730936,2075.0,2073.3,8.85700466]
[1770446865499,8.68730936,2075.0,2073.4,8.85700466]
[1770446865800,1.99462155,2074.6,2073.4,8.85700466]
[1770446865998,8.68342599,2074.5,2073.4,8.85700466]
[1770446867291,8.68342599,2074.4,2073.4,8.85700466]
[1770446868298,8.68342599,2074.3,2073.4,8.85700466]
[1770446868499,0.24122,2074.0,2072.4,8.85700466]
[1770446868698,8.68342599,2073.6,2072.4,8.85700466]
[1770446868898,8.68342599,2073.5,2072.4,8.85700466]
[1770446869197,0.00383875,2073.5,2072.4,8.85700466]
[1770446869500,8.68726474,2073.5,2072.4,8.85700466]
[1770446870496,0.00383875,2073.5,2072.4,8.85700466]
[1770446871303,8.68342599,2074.1,2072.4,8.85700466]
[1770446872404,8.68787312,2074.1,2072.4,8.86084341]
[1770446873302,0.00444713,2074.1,2072.4,8.86084341]
[1770446873899,0.00444713,2074.1,2072.6,10.85162621]
[1770446874104,8.68342599,2074.7,2072.9,8.85700466]
[1770446874501,8.68342599,2074.5,2072.9,8.85700466]
[1770446874803,8.68342599,2074.7,2072.9,8.85700466]
[1770446874997,8.68797833,2074.7,2072.9,8.85700466]
[1770446875204,0.00455234,2074.7,2073.2,8.85700466]
[1770446875404,0.00455234,2074.7,2073.7,8.85700466]
[1770446875697,8.68342599,2075.2,2073.7,8.85700466]
[1770446875904,8.68342599,2075.2,2073.6,1.99773748]
[1770446875905,8.68342599,2075.7,2074.0,8.85700466]
[1770446876604,8.68682809,2075.7,2074.0,8.86096877]
[1770446876904,8.68682809,2075.7,2074.3,8.85700466]
[1770446878099,0.0034021,2075.7,2074.3,10.85474214]
[1770446878901,0.0034021,2075.7,2074.5,8.85700466]
[1770446879800,8.68682809,2075.7,2074.5,8.85700466]
[1770446881006,0.0034021,2075.7,2074.5,8.85700466]
[1770446882104,10.53708068,2076.8,2074.7,1.99773748]
[1770446882105,8.68342599,2076.3,2074.7,1.99773748]
[1770446882302,8.68342599,2076.3,2074.8,8.85700466]
[1770446882706,8.68342599,2076.1,2074.8,8.85700466]
[1770446883507,8.68707553,2076.1,2074.8,8.85700466]
[1770446885302,0.00364954,2076.1,2074.8,8.85700466]
[1770446885498,0.00364954,2076.1,2074.8,10.85474214]
[1770446885909,0.00364954,2076.1,2074.8,8.85700466]
[1770446886602,8.60015142,2076.6,2074.8,8.85700466]
[1770446887006,8.60015142,2076.8,2075.2,8.60090335]
[1770446887314,8.60015142,2077.1,2075.5,8.60090335]
[1770446887812,0.00546835,2077.1,2075.8,8.60090335]
[1770446888916,8.69464813,2077.6,2076.1,8.60090335]
[1770446889910,10.69667031,2077.6,2076.1,8.60090335]
[1770446891109,8.69464813,2077.2,2076.1,8.60090335]
[1770446891310,0.0042847,2077.6,2076.3,1.99773748]
[1770446891512,0.0042847,2077.6,2076.4,8.2329045]
[1770446892210,5.67963578,2078.7,2077.0,8.2329045]
[1770446892211,8.69464813,2078.7,2077.0,8.2329045]
[1770446892420,8.69464813,2078.7,2077.3,10.23064198]
[1770446892601,8.69464813,2078.7,2077.3,8.2329045]
[1770446892805,8.69464813,2078.2,2077.3,8.2329045]
[1770446893006,8.69464813,2078.2,2077.0,8.2329045]
[1770446893207,8.69988624,2078.2,2077.0,8.23833304]
[1770446893409,8.69988624,2078.2,2075.9,0.24099]
[1770446893410,8.69464813,2077.6,2075.7,1.99773748]
[1770446893604,8.69464813,2077.6,2076.5,8.2329045]
[1770446894618,8.69464813,2077.6,2076.5,8.23826986]
[1770446894814,0.00523811,2078.2,2075.5,8.2329045]
[1770446895115,8.69464813,2076.5,2075.5,8.2329045]
[1770446895420,8.69464813,2076.8,2075.5,8.2329045]
[1770446896319,8.70082097,2076.8,2075.5,8.23645995]
[1770446897214,8.70082097,2076.8,2075.6,8.2329045]